fUST/lending_fUST_20250626
["ID","MTS","AMOUNT","RATE_DAILY","PERIOD"]
[367855686,1750947513447,1672.87,0.000229,31]
[367855687,1750947513517,1672.87,0.000229,31]
[367855688,1750947513575,1672.87,0.000229,31]
[367855689,1750947513627,1672.87,0.000229,31]
[367855690,1750947513695,1672.87,0.000229,31]
[367855691,1750947513764,1672.87,0.000229,31]
[367855692,1750947513840,1672.87,0.000229,31]
[367855693,1750947513878,1672.87,0.000229,31]
[367855694,1750947513939,1672.87,0.000229,31]
[367855695,1750947513994,1672.87,0.000229,31]
[367855696,1750947514064,1672.87,0.000229,31]
[367855697,1750947514117,1672.87,0.000229,31]
[367855698,1750947514185,1672.87,0.000229,31]
[367855699,1750947514243,1672.87,0.000229,31]
[367855700,1750947648125,174.026724,0.00013699,2]
[367855702,1750947740148,-175.14154734,0.0001856,2]
[367855703,1750947740174,-8.61151403,0.00018659,2]
[367855704,1750947743264,-172.9670092,0.00018659,2]
[367855705,1750947745956,-118.42147677,0.00018659,2]
[367855706,1750947745980,-300.0,0.00018659,2]
[367855707,1750947746003,-192.67427813,0.0001866,2]
[367855708,1750947750527,-388.9042451,0.0001866,2]
[367855711,1750947845156,-160.0,0.00018621,2]
[367855712,1750947845178,-44.36381135,0.00018647,2]
[367855713,1750947847972,-115.63618865,0.00018647,2]
[367855714,1750947847995,-300.0,0.00018659,2]
[367855715,1750947848018,-187.67837417,0.0001866,2]
[367855716,1750947854118,-182.27511946,0.0001866,2]
[367855717,1750947856252,-617.85433637,0.0001866,2]
[367855719,1750947920159,-300.0,0.00018659,2]
[367855720,1750947920181,-229.0646444,0.0001866,2]
[367855721,1750947926524,-175.85355033,0.0001866,2]
[367855725,1750947934373,-300.0,0.0001866,2]
[367855726,1750947935940,-246.0,0.0001866,2]
[367855727,1750947942162,-300.0,0.0001866,2]
[367855728,1750947944231,-334.87781544,0.0001866,2]
[367855729,1750947950773,-515.75563088,0.0001866,2]
[367855730,1750947958873,-230.24436912,0.0001866,2]
[367855731,1750947960562,-254.0,0.0001866,2]
[367855732,1750947969777,-300.0,0.00018659,2]
[367855733,1750947969800,-334.87781544,0.0001866,2]
[367855734,1750947974999,-214.48873824,0.0001866,2]
[367855735,1750947976733,-420.3890772,0.0001866,2]
[367855736,1750947983474,-166.0,0.0001866,2]
[367855737,1750947985240,-300.0,0.0001866,2]
[367855738,1750947991862,-573.90747588,0.0001866,2]
[367855739,1750947994608,-157.8876717,0.0001866,2]
[367855740,1750947998722,-167.0,0.0001866,2]
[367855743,1750948001392,-167.0,0.0001866,2]
[367855744,1750948006891,-288.228022,0.0001866,2]
[367855745,1750948008386,-317.35164825,0.0001866,2]
[367855746,1750948015419,-224.5185491,0.0001866,2]
[367855747,1750948022585,-300.0,0.00018659,2]
[367855748,1750948022607,-120.21455826,0.0001866,2]
[367855749,1750948027322,-214.66325718,0.0001866,2]
[367855751,1750948030607,-272.11456647,0.0001866,2]
[367855752,1750948032691,-300.0,0.0001866,2]
[367855754,1750948038547,-160.0,0.00018649,2]
[367855755,1750948038572,-32.59233402,0.0001866,2]
[367855756,1750948041874,-246.74172783,0.0001866,2]
[367855757,1750948046470,-212.71056651,0.0001866,2]
[367855759,1750948054733,-319.91677307,0.0001866,2]
[367855760,1750948070185,-381.43547403,0.00018,2]
[367855761,1750948072915,-234.04828835,0.00018,2]
[367855762,1750948078596,-264.96701165,0.00018,2]
[367855763,1750948082038,-285.84071724,0.00018,2]
[367855764,1750948089821,-300.0,0.00017999,2]
[367855765,1750948089844,-238.00208156,0.00018,2]
[367855766,1750948094193,-250.9629018,0.00018,2]
[367855767,1750948096019,-349.0370982,0.00018,2]
[367855768,1750948104972,-168.13194273,0.00018,2]
[367855769,1750948110625,-331.86805727,0.00018,2]
[367855770,1750948120071,-500.0,0.00017,2]
[367855775,1750948125586,1388.63,0.000229,31]
[367855776,1750948125721,1388.63,0.000229,31]
[367855777,1750948125777,1388.63,0.000229,31]
[367855778,1750948125846,1388.63,0.000229,31]
[367855779,1750948125912,1388.63,0.000229,31]
[367855780,1750948125971,1388.63,0.000229,31]
[367855781,1750948126032,1388.63,0.000229,31]
[367855782,1750948126169,1388.63,0.000229,31]
[367855783,1750948127468,1388.63,0.000229,31]
[367855784,1750948127499,1388.63,0.000229,31]
[367855785,1750948127531,1388.63,0.000229,31]
[367855786,1750948127562,1388.63,0.000229,31]
[367855787,1750948127601,1388.63,0.000229,31]
[367855788,1750948127637,1388.63,0.000229,31]
[367855789,1750948127667,1388.63,0.000229,31]
[367855790,1750948127700,1388.63,0.000229,31]
[367855791,1750948127730,-154.26491177,0.000168,2]
[367855792,1750948127752,-368.8125565,0.00017,2]
[367855794,1750948135797,-478.77584882,0.00017,2]
[367855795,1750948144206,-460.0,0.00017,2]
[367855796,1750948148408,482964.4117105,0.00025927,60]
[367855797,1750948152902,-194.39325487,0.00017,2]
[367855801,1750948162023,-252.76566151,0.00017,2]
[367855803,1750948167643,-189.80381089,0.00017,2]
[367855804,1750948177073,-300.0,0.00017,2]
[367855805,1750948182986,-273.90747588,0.00017,2]
[367855807,1750948185525,-340.40728578,0.00017,2]
[367855808,1750948191460,-213.24153773,0.00017,2]
[367855809,1750948194352,-291.86805727,0.00017,2]
[367855810,1750948198404,-167.0,0.00017,2]
[367855811,1750948201205,-167.0,0.00017,2]
[367855814,1750948208159,-167.0,0.00016999,2]
[367855815,1750948215669,-133.0,0.00016999,2]
[367855816,1750948215692,-46.09334416,0.00016999,2]
[367855817,1750948217503,-253.90665584,0.00016999,2]
[367855818,1750948217524,-12.04505581,0.00017,2]
[367855819,1750948222846,-204.91819473,0.00017,2]
[367855820,1750948225679,-251.28912301,0.00017,2]
[367855821,1750948231260,-250.85252126,0.00017,2]
[367855908,1750948233106,-203.21315221,0.00017,2]
[367855911,1750948233124,-380.15004433,0.00017,2]
[367855913,1750948233135,-1161.1420984,0.00017,2]
[367855986,1750948238790,-85301.54414905,0.00017,2]
[367855988,1750948238801,-225.0,0.00017,2]
[367855990,1750948238810,-160.0,0.00017,2]
[367855992,1750948238820,-306.0,0.000172,2]
[367855994,1750948238829,-2896.25758649,0.000179,2]
[367855996,1750948238838,-132585.69730751,0.00018,2]
[367855998,1750948238847,-21954.82054918,0.00018,2]
[367856000,1750948238857,-138345.7463421,0.00018,2]
[367856002,1750948238867,-29156.39682197,0.00018,2]
[367856004,1750948238876,-2896.25758627,0.00018176,2]
[367856006,1750948238886,-2896.25758627,0.00018452,2]
[367856008,1750948238895,-500.0,0.00018557,2]
[367856010,1750948238905,-420.0,0.00018567,2]
[367856012,1750948238917,-420.0,0.00018567,2]
[367856015,1750948238931,-500.0,0.000186,2]
[367856017,1750948238940,-22672.98457428,0.0001866,2]
[367856019,1750948238950,-2896.25758627,0.00018728,2]
[367856021,1750948238960,-1173.68185765,0.00019,2]
[367856023,1750948238970,-2896.25758627,0.00019003,2]
[367856025,1750948238979,-627.19226716,0.00019105,2]
[367856027,1750948238989,-175.14154734,0.0001919,2]
[367856029,1750948238999,-2896.25758627,0.00019279,2]
[367856031,1750948239008,-677.8075044,0.0001929,2]
[367856033,1750948239019,-200.0,0.00019499,2]
[367856035,1750948239028,-500.0,0.00019499,2]
[367856037,1750948239038,-1245.65133483,0.00019499,2]
[367856039,1750948239047,-500.0,0.00019499,2]
[367856041,1750948239056,-200.0,0.00019499,2]
[367856043,1750948239066,-500.0,0.00019499,2]
[367856045,1750948239075,-200.0,0.00019499,2]
[367856047,1750948239084,-207.4,0.00019499,2]
[367856049,1750948239094,-500.0,0.00019499,2]
[367856051,1750948239103,-200.0,0.00019499,2]
[367856053,1750948239113,-200.0,0.00019499,2]
[367856055,1750948239123,-500.0,0.00019499,2]
[367856058,1750948239133,-200.0,0.00019499,2]
[367856060,1750948239143,-200.0,0.00019499,2]
[367856062,1750948239152,-500.0,0.00019499,2]
[367856064,1750948239161,-200.0,0.00019499,2]
[367856066,1750948239172,-500.0,0.00019499,2]
[367856068,1750948239181,-200.0,0.00019499,2]
[367856070,1750948239190,-500.0,0.00019499,2]
[367856071,1750948239199,-200.0,0.00019499,2]
[367856073,1750948239208,-500.0,0.00019499,2]
[367856075,1750948239217,-200.0,0.00019499,2]
[367856077,1750948239226,-500.0,0.00019499,2]
[367856079,1750948239235,-200.0,0.00019499,2]
[367856082,1750948239244,-500.0,0.00019499,2]
[367856083,1750948239254,-265.60752438,0.00019499,2]
[367856086,1750948239263,-500.0,0.00019499,2]
[367856088,1750948239273,-500.0,0.00019499,2]
[367856089,1750948239282,-500.0,0.00019499,2]
[367856092,1750948239291,-500.0,0.00019499,2]
[367856094,1750948239300,-500.0,0.00019499,2]
[367856096,1750948239309,-500.0,0.00019499,2]
[367856097,1750948239318,-500.0,0.00019499,2]
[367856100,1750948239327,-2896.25758627,0.00019555,2]
[367856101,1750948239337,-500.0,0.00019658,2]
[367856103,1750948239346,-500.0,0.00019658,2]
[367856105,1750948239355,-500.0,0.00019658,2]
[367856107,1750948239364,-500.0,0.00019658,2]
[367856109,1750948239373,-500.0,0.00019658,2]
[367856111,1750948239382,-500.0,0.00019658,2]
[367856113,1750948239392,-574.8444814,0.00019658,2]
[367856115,1750948239401,-1311.6237127,0.00019658,2]
[367856117,1750948239411,-500.0,0.00019658,2]
[367856119,1750948239421,-445.7389006,0.00019658,2]
[367856121,1750948239430,-500.0,0.00019658,2]
[367856123,1750948239439,-500.0,0.00019658,2]
[367856125,1750948239448,-406.31263868,0.00019658,2]
[367856127,1750948239457,-500.0,0.00019658,2]
[367856129,1750948239466,-574.8444814,0.00019658,2]
[367856131,1750948239476,-500.0,0.00019658,2]
[367856133,1750948239488,-1311.6237127,0.00019658,2]
[367856135,1750948239497,-500.0,0.00019658,2]
[367856137,1750948239507,-500.0,0.00019658,2]
[367856139,1750948239516,-500.0,0.00019658,2]
[367856141,1750948239525,-500.0,0.00019658,2]
[367856143,1750948239535,-500.0,0.00019658,2]
[367856145,1750948239544,-574.8444814,0.00019658,2]
[367856147,1750948239553,-500.0,0.00019658,2]
[367856149,1750948239564,-1311.6237127,0.00019658,2]
[367856151,1750948239573,-500.0,0.00019658,2]
[367856153,1750948239582,-500.0,0.00019658,2]
[367856155,1750948239591,-574.8444814,0.00019658,2]
[367856157,1750948239600,-500.0,0.00019658,2]
[367856159,1750948239610,-500.0,0.00019658,2]
[367856161,1750948239619,-500.0,0.00019658,2]
[367856163,1750948239628,-483.85161793,0.00019658,2]
[367856165,1750948239638,-1311.6237127,0.00019658,2]
[367856167,1750948239648,-500.0,0.00019658,2]
[367856169,1750948239657,-346.33287751,0.00019658,2]
[367856171,1750948239667,-574.8444814,0.00019658,2]
[367856173,1750948239675,-500.0,0.00019658,2]
[367856175,1750948239685,-500.0,0.00019658,2]
[367856177,1750948239695,-500.0,0.00019658,2]
[367856178,1750948239704,-1311.6237127,0.00019658,2]
[367856181,1750948239714,-500.0,0.00019658,2]
[367856182,1750948239723,-574.8444814,0.00019658,2]
[367856184,1750948239733,-500.0,0.00019658,2]
[367856186,1750948239743,-500.0,0.00019658,2]
[367856188,1750948239753,-500.0,0.00019658,2]
[367856190,1750948239762,-574.8444814,0.00019658,2]
[367856192,1750948239772,-500.0,0.00019658,2]
[367856195,1750948239784,-1311.6237127,0.00019658,2]
[367856196,1750948239794,-500.0,0.00019658,2]
[367856198,1750948239804,-500.0,0.00019658,2]
[367856200,1750948239814,-574.8444814,0.00019658,2]
[367856202,1750948239823,-500.0,0.00019658,2]
[367856204,1750948239832,-1311.6237127,0.00019658,2]
[367856206,1750948239842,-500.0,0.00019658,2]
[367856208,1750948239851,-500.0,0.00019658,2]
[367856210,1750948239860,-500.0,0.00019658,2]
[367856212,1750948239869,-574.8444814,0.00019658,2]
[367856214,1750948239878,-500.0,0.00019658,2]
[367856216,1750948239887,-500.0,0.00019658,2]
[367856218,1750948239896,-500.0,0.00019658,2]
[367856220,1750948239906,-500.0,0.00019658,2]
[367856222,1750948239917,-1311.6237127,0.00019658,2]
[367856224,1750948239933,-574.8444814,0.00019658,2]
[367856226,1750948239942,-500.0,0.00019658,2]
[367856228,1750948239952,-500.0,0.00019658,2]
[367856230,1750948239962,-500.0,0.00019658,2]
[367856232,1750948239971,-1311.6237127,0.00019658,2]
[367856234,1750948239980,-500.0,0.00019658,2]
[367856236,1750948239990,-574.8444814,0.00019658,2]
[367856238,1750948239999,-500.0,0.00019658,2]
[367856240,1750948240008,-500.0,0.00019658,2]
[367856242,1750948240017,-500.0,0.00019658,2]
[367856244,1750948240026,-1311.6237127,0.00019658,2]
[367856245,1750948240036,-574.8444814,0.00019658,2]
[367856247,1750948240045,-203.86368174,0.00019658,2]
[367856249,1750948240055,-500.0,0.00019658,2]
[367856252,1750948240065,-500.0,0.00019658,2]
[367856253,1750948240075,-500.0,0.00019658,2]
[367856255,1750948240085,-1311.6237127,0.00019658,2]
[367856257,1750948240095,-500.0,0.00019658,2]
[367856260,1750948240105,-500.0,0.00019658,2]
[367856261,1750948240115,-574.8444814,0.00019658,2]
[367856263,1750948240124,-1311.6237127,0.00019658,2]
[367856265,1750948240134,-500.0,0.00019658,2]
[367856267,1750948240143,-574.8444814,0.00019658,2]
[367856269,1750948240152,-500.0,0.00019658,2]
[367856271,1750948240162,-500.0,0.00019658,2]
[367856273,1750948240171,-1311.6237127,0.00019658,2]
[367856275,1750948240182,-574.8444814,0.00019658,2]
[367856277,1750948240191,-500.0,0.00019658,2]
[367856279,1750948240201,-500.0,0.00019658,2]
[367856281,1750948240210,-500.0,0.00019658,2]
[367856283,1750948240219,-1311.6237127,0.00019658,2]
[367856285,1750948240228,-574.8444814,0.00019658,2]
[367856287,1750948240238,-500.0,0.00019658,2]
[367856289,1750948240247,-1311.6237127,0.00019658,2]
[367856291,1750948240257,-574.8444814,0.00019658,2]
[367856293,1750948240267,-500.0,0.00019658,2]
[367856295,1750948240276,-1311.6237127,0.00019658,2]
[367856297,1750948240286,-574.8444814,0.00019658,2]
[367856299,1750948240295,-500.0,0.00019658,2]
[367856301,1750948240304,-574.8444814,0.00019658,2]
[367856303,1750948240313,-500.0,0.00019658,2]
[367856305,1750948240322,-500.0,0.00019658,2]
[367856307,1750948240332,-1311.6237127,0.00019658,2]
[367856308,1750948240341,-574.8444814,0.00019658,2]
[367856310,1750948240351,-500.0,0.00019658,2]
[367856312,1750948240361,-500.0,0.00019658,2]
[367856315,1750948240370,-1311.6237127,0.00019658,2]
[367856317,1750948240380,-574.8444814,0.00019658,2]
[367856319,1750948240391,-500.0,0.00019658,2]
[367856320,1750948240400,-450.0,0.00019658,2]
[367856322,1750948240410,-574.8444814,0.00019658,2]
[367856324,1750948240421,-1311.6237127,0.00019658,2]
[367856326,1750948240430,-500.0,0.00019658,2]
[367856328,1750948240440,-574.8444814,0.00019658,2]
[367856330,1750948240450,-1311.6237127,0.00019658,2]
[367856332,1750948240459,-500.0,0.00019658,2]
[367856334,1750948240469,-574.8444814,0.00019658,2]
[367856336,1750948240478,-1311.6237127,0.00019658,2]
[367856338,1750948240488,-500.0,0.00019658,2]
[367856340,1750948240497,-574.8444814,0.00019658,2]
[367856342,1750948240506,-1311.6237127,0.00019658,2]
[367856344,1750948240516,-574.8444814,0.00019658,2]
[367856346,1750948240525,-500.0,0.00019658,2]
[367856348,1750948240534,-1311.6237127,0.00019658,2]
[367856350,1750948240544,-574.8444814,0.00019658,2]
[367856352,1750948240553,-1311.6237127,0.00019658,2]
[367856354,1750948240562,-574.8444814,0.00019658,2]
[367856356,1750948240573,-500.0,0.00019658,2]
[367856358,1750948240583,-1311.6237127,0.00019658,2]
[367856360,1750948240593,-500.0,0.00019658,2]
[367856362,1750948240603,-574.8444814,0.00019658,2]
[367856364,1750948240612,-1311.6237127,0.00019658,2]
[367856366,1750948240621,-500.0,0.00019658,2]
[367856368,1750948240630,-574.8444814,0.00019658,2]
[367856370,1750948240640,-1311.6237127,0.00019658,2]
[367856371,1750948240650,-500.0,0.00019658,2]
[367856373,1750948240660,-574.8444814,0.00019658,2]
[367856376,1750948240672,-574.8444814,0.00019658,2]
[367856377,1750948240681,-500.0,0.00019658,2]
[367856379,1750948240691,-1311.6237127,0.00019658,2]
[367856381,1750948240700,-574.8444814,0.00019658,2]
[367856383,1750948240709,-574.8444814,0.00019658,2]
[367856385,1750948240718,-1311.6237127,0.00019658,2]
[367856387,1750948240728,-500.0,0.00019658,2]
[367856389,1750948240737,-574.8444814,0.00019658,2]
[367856391,1750948240746,-1311.6237127,0.00019658,2]
[367856393,1750948240755,-574.8444814,0.00019658,2]
[367856395,1750948240764,-500.0,0.00019658,2]
[367856397,1750948240773,-1311.6237127,0.00019658,2]
[367856399,1750948240783,-574.8444814,0.00019658,2]
[367856401,1750948240792,-500.0,0.00019658,2]
[367856403,1750948240802,-574.8444814,0.00019658,2]
[367856405,1750948240811,-574.8444814,0.00019658,2]
[367856406,1750948240822,-574.8444814,0.00019658,2]
[367856408,1750948240831,-1311.6237127,0.00019658,2]
[367856410,1750948240841,-1311.6237127,0.00019658,2]
[367856412,1750948240850,-1311.6237127,0.00019658,2]
[367856414,1750948240859,-1311.6237127,0.00019658,2]
[367856416,1750948240869,-1311.6237127,0.00019658,2]
[367856418,1750948240878,-574.8444814,0.00019658,2]
[367856420,1750948240888,-1311.6237127,0.00019658,2]
[367856422,1750948240898,-574.8444814,0.00019658,2]
[367856424,1750948240907,-1311.6237127,0.00019658,2]
[367856426,1750948240918,-1311.6237127,0.00019658,2]
[367856428,1750948240930,-574.8444814,0.00019658,2]
[367856430,1750948240940,-474.16061118,0.00019658,2]
[367856432,1750948240949,-1311.6237127,0.00019658,2]
[367856434,1750948240958,-1311.6237127,0.00019658,2]
[367856436,1750948240969,-1311.6237127,0.00019658,2]
[367856438,1750948240978,-500.0,0.00019658,2]
[367856439,1750948240987,-384626.89993,0.00019659,2]
[367856441,1750948240998,-30000.0,0.0001966,2]
[367856443,1750948241008,-2896.25758627,0.00019831,2]
[367856445,1750948241018,-846.92323443,0.00019883,2]
[367856447,1750948241027,-213.72380786,0.00019883,2]
[367856449,1750948241037,-160.0,0.00019883,2]
[367856451,1750948241046,-160.0,0.00019883,2]
[367856453,1750948241056,-836.92866116,0.00019883,2]
[367856455,1750948241066,-160.0,0.00019883,2]
[367856457,1750948241075,-230.24506774,0.00019896,2]
[367856459,1750948241085,-425.22527846,0.00019947,2]
[367856461,1750948241094,-151.0,0.0002,2]
[367856463,1750948241104,-42727.4162671,0.0002,2]
[367856465,1750948241113,-2896.25758627,0.00020107,2]
[367856467,1750948241122,-174.026724,0.00020187,2]
[367856470,1750948241131,-587.0,0.00020279,2]
[367856472,1750948241141,-587.0,0.00020279,2]
[367856474,1750948241150,-2896.25758627,0.00020383,3]
[367856476,1750948241159,-2364.9515801,0.00020391,2]
[367856478,1750948241168,-151.0,0.000204,4]
[367856480,1750948241178,-243.0,0.00020534,2]
[367856482,1750948241187,-331.489957,0.00020538,2]
[367856484,1750948241196,-500.0,0.00020547,14]
[367856486,1750948241205,-213.72380786,0.0002064,10]
[367856488,1750948241213,-570.12,0.0002064,3]
[367856490,1750948241222,-243.0,0.0002064,2]
[367856492,1750948241231,-213.72380786,0.0002065,10]
[367856493,1750948241241,-190.04,0.0002065,3]
[367856495,1750948241250,-2896.25758627,0.00020659,3]
[367856497,1750948241259,-30000.0,0.0002066,2]
[367856499,1750948241269,-536.1,0.000207,2]
[367856501,1750948241278,-3290.27,0.000207,2]
[367856503,1750948241288,-53211.28186519,0.000207,2]
[367856505,1750948241296,-151.0,0.000208,3]
[367856507,1750948241307,-215.0738,0.00020868,2]
[367856509,1750948241316,-2896.25758627,0.00020934,4]
[367856511,1750948241325,-966.0,0.00020936,2]
[367856513,1750948241334,-500.0,0.00020958,15]
[367856515,1750948241344,-243.0,0.00020992,2]
[367856517,1750948241354,-732.117071,0.00021041,2]
[367856519,1750948241363,-173.0,0.00021133,2]
[367856521,1750948241373,-151.0,0.000212,3]
[367856523,1750948241383,-173.0,0.00021201,2]
[367856525,1750948241392,-2896.25758627,0.0002121,4]
[367856543,1750948241547,-173.0,0.00021212,2]
[367856545,1750948241563,-243.0,0.00021224,2]
[367856547,1750948241572,-173.0,0.00021266,2]
[367856549,1750948241582,-173.0,0.00021283,2]
[367856551,1750948241591,-654.0,0.00021286,2]
[367856553,1750948241600,-2161.0,0.00021286,2]
[367856555,1750948241609,-500.0,0.00021369,16]
[367856557,1750948241619,-2263.89,0.00021417,2]
[367856559,1750948241628,-173.0,0.00021463,2]
[367856560,1750948241637,-151.0,0.00021485,2]
[367856562,1750948241646,-168.0,0.00021486,2]
[367856564,1750948241655,-2896.25758627,0.00021486,5]
[367856566,1750948241664,-2874.18214536,0.000215,2]
[367856568,1750948241673,-500.0,0.000215,2]
[367856570,1750948241682,-151.0,0.00021512,2]
[367856572,1750948241692,-198.72712322,0.0002154,2]
[367856574,1750948241702,-1590.446918,0.0002156,4]
[367856576,1750948241711,-151.0,0.000216,3]
[367856578,1750948241721,-500.0,0.00021673,2]
[367856580,1750948241730,-500.0,0.00021673,2]
[367856582,1750948241739,-500.0,0.00021673,2]
[367856584,1750948241748,-432.95481487,0.00021673,2]
[367856586,1750948241757,-171.72551476,0.00021673,2]
[367856588,1750948241766,-500.0,0.00021673,2]
[367856590,1750948241775,-500.0,0.00021699,2]
[367856592,1750948241784,-500.0,0.00021699,2]
[367856594,1750948241794,-591.90641408,0.00021699,2]
[367856596,1750948241804,-500.0,0.00021699,2]
[367856598,1750948241813,-408.53445099,0.00021699,2]
[367856600,1750948241822,-500.0,0.00021699,2]
[367856602,1750948241832,-101701.0767552,0.000217,2]
[367856604,1750948241842,-2896.25758627,0.00021762,5]
[367856605,1750948241851,-126708.7097746,0.0002178,2]
[367856608,1750948241871,-528.78757581,0.0002178,2]
[367856610,1750948241882,-340.47030623,0.0002178,2]
[367856613,1750948241893,-1526.68947299,0.0002178,2]
[367856615,1750948241905,-908.34935448,0.0002178,2]
[367856616,1750948242014,-303.11809068,0.00019658,2]
[367856617,1750948242043,-1008.50562202,0.00019658,2]
[367856618,1750948242053,-399.96592398,0.0002178,2]
[367856619,1750948242079,-33770.30816235,0.0002178,2]
[367857000,1750948245965,-272.49442772,0.0002178,2]
[367857081,1750948246660,-406.38639257,0.0002178,2]
[367857083,1750948246672,-1958.56518753,0.0002178,2]
[367858064,1750948256985,-404.99871591,0.0002178,2]
[367858455,1750948261165,-239.85181337,0.0002178,2]
[367858774,1750948264494,-260.14818663,0.00019657,2]
[367859320,1750948271247,-39.85181337,0.00019657,2]
[367859324,1750948271273,-218.10483723,0.00019658,2]
[367859566,1750948274177,-200.0,0.00019648,2]
[367859570,1750948274208,-100.0,0.00019658,2]
[367859961,1750948278611,-200.0,0.00019648,2]
[367859965,1750948278639,-25.06384989,0.00019648,2]
[367860516,1750948285000,-174.93615011,0.00019648,2]
[367860519,1750948285024,-108.45647395,0.00019648,2]
[367860755,1750948287627,-91.54352605,0.00019648,2]
[367860758,1750948287649,-200.0,0.00019648,2]
[367860762,1750948287670,-200.0,0.00019648,2]
[367860765,1750948287691,-128.27654789,0.00019648,2]
[367860885,1750948289179,-71.72345211,0.00019648,2]
[367860886,1750948289202,-191.06384989,0.00019648,2]
[367861233,1750948293338,-8.93615011,0.00019648,2]
[367861235,1750948293361,-200.0,0.00019648,2]
[367861238,1750948293386,-192.13707382,0.00019648,2]
[367861383,1750948294868,-7.86292618,0.00019648,2]
[367861386,1750948294892,-200.0,0.00019648,2]
[367861389,1750948294915,-130.0073604,0.00019648,2]
[367861978,1750948301018,-69.9926396,0.00019648,2]
[367861982,1750948301042,-191.06384989,0.00019648,2]
[367862129,1750948302552,-8.93615011,0.00019648,2]
[367862132,1750948302575,-200.0,0.00019648,2]
[367862135,1750948302600,-83.70030393,0.00019648,2]
[367862330,1750948304699,-116.29969607,0.00019648,2]
[367862333,1750948304723,-176.65560383,0.00019648,2]
[367862650,1750948313748,-23.34439617,0.00019648,2]
[367862651,1750948313770,-200.0,0.00019648,2]
[367862652,1750948313794,-181.89516277,0.00019658,2]
[367862653,1750948313817,-214.580515,0.00019658,2]
[367862654,1750948314872,-214.580515,0.00019658,2]
[367862655,1750948318160,-70.83897,0.00019658,2]
[367862656,1750948318185,-500.0,0.00019658,2]
[367862657,1750948318209,-48.98110394,0.00019658,2]
[367862658,1750948319813,-251.01889606,0.00019658,2]
[367862659,1750948319839,-248.98110394,0.00019658,2]
[367862660,1750948325396,-175.14154734,0.00019558,2]
[367862661,1750948325419,-30.45057286,0.00019657,2]
[367862662,1750948328061,-269.54942714,0.00019657,2]
[367862663,1750948328087,-16.43845266,0.00019658,2]
[367862664,1750948334412,-214.0121202,0.00019658,2]
[367862665,1750948336100,-423.85816638,0.00019658,2]
[367862666,1750948341266,-362.12971342,0.00019648,2]
[367862667,1750948344495,-167.0,0.00019648,2]
[367862668,1750948349466,-222.01,0.00019648,2]
[367862669,1750948352029,-95.78352101,0.00019648,2]
[367862670,1750948352051,-126.22647899,0.00019648,2]
[367862671,1750948359523,-33.77352101,0.00019648,2]
[367862672,1750948359549,-167.8695222,0.00019658,2]
[367862673,1750948359573,-11.94695679,0.00019658,2]
[367862674,1750948361057,-330.86372225,0.00019658,2]
[367862675,1750948365344,-213.72380786,0.00019658,2]
[367862676,1750948365366,-86.27619214,0.00019658,2]
[367862677,1750948367063,-73.72380786,0.00019658,2]
[367862678,1750948367089,-160.0,0.00019658,2]
[367862679,1750948367114,-66.27619214,0.00019658,2]
[367862680,1750948373139,-155.0,0.00019658,2]
[367862681,1750948373161,-5.2826138,0.00019658,2]
[367862682,1750948374670,-186.57260625,0.00019658,2]
[367862683,1750948379788,-381.47433679,0.00019658,2]
[367862684,1750948382007,-197.32291218,0.00019658,2]
[367862685,1750948382032,-12.621753,0.00019658,2]
[367862686,1750948384105,-217.62331474,0.00019658,2]
[367862687,1750948384128,-32.88687639,0.00019658,2]